[Event "II Cerrado Promocion FNA 2022"]
[Site "Pamplona"]
[Date "2022.01.06"]
[Round "6.2"]
[White "Labiano Hernandez, Juan"]
[Black "Habans Aguerrea, Javier"]
[Result "0-1"]
[ECO "A43"]
[WhiteElo "2210"]
[BlackElo "2298"]
[Annotator "ChessBase"]
[PlyCount "132"]
[EventDate "2022.01.02"]
[EventType "tourn"]
[EventCountry "ESP"]
[SourceTitle "playchess.com"]
[Source "ChessBase"]
[SourceQuality "1"]
[TimeControl "5400+30"]

1. d4 {[%emt 0:00:05]} Nf6 {[%emt 0:00:13]} 2. Nf3 {[%emt 0:00:06]} c5 {[%emt 0:01:46]} 3. d5 {[%emt 0:00:20]} g6 {[%emt 0:00:08]} 4. Nc3 {[%emt 0:00:24]} Bg7 {[%emt 0:00:10]} 5. e4 {[%emt 0:00:18]} O-O {[%emt 0:00:23]} 6. Bd3 {[%emt 0:08:48]} d6 {[%emt 0:01:37]} 7. h3 {[%emt 0:06:07]} e6 {[%emt 0:11:35]} 8. O-O {[%emt 0:01:16]} exd5 {[%emt 0:01:40]} 9. exd5 {[%emt 0:00:56]} Na6 {[%emt 0:00:44]} 10. Bc4 {[%emt 0:04:58]} Nc7 {[%emt 0:03:05]} 11. Re1 {[%emt 0:03:52]} Qd7 {[%emt 0:09:11]} 12. a4 {[%emt 0:02:04]} b6 {[%emt 0:01:32]} 13. Bf4 {[%emt 0:04:39]} Bb7 {[%emt 0:03:04]} 14. Qd3 {[%emt 0:00:35]} a6 {[%emt 0:05:57]} 15. Bh2 {[%emt 0:08:36]} Rfd8 {[%emt 0:12:19]} 16. Ng5 {[%emt 0:10:35]} h6 {[%emt 0:15:35]} 17. Nge4 {[%emt 0:00:55]} Nxe4 {[%emt 0:00:37]} 18. Nxe4 {[%emt 0:00:46]} b5 {[%emt 0:01:43]} 19. Ba2 {[%emt 0:10:25]} c4 {[%emt 0:01:05]} 20. Qf3 {[%emt 0:00:48]} Nxd5 {[%emt 0:04:12]} 21. Nxd6 {[%emt 0:07:59]} Bc6 {[%emt 0:01:10]} 22. Ne4 {[%emt 0:02:30]} Bxb2 {[%emt 0:07:54]} 23. Rad1 {[%emt 0:00:35]} Qf5 {[%emt 0:00:30]} 24. Qxf5 {[%emt 0:01:23]} gxf5 {[%emt 0:00:02]} 25. Ng3 {[%emt 0:00:51]} Nc3 {[%emt 0:02:31]} 26. Rxd8+ {[%emt 0:00:04]} Rxd8 {[%emt 0:00:01]} 27. Nxf5 {[%emt 0:00:49]} Be4 {[%emt 0:10:20]} 28. Nd6 {[%emt 0:05:16]} Bg6 {[%emt 0:01:11]} 29. axb5 {[%emt 0:01:25]} axb5 {[%emt 0:00:20]} 30. Nxc4 {[%emt 0:04:17]} bxc4 {[%emt 0:00:21]} 31. Bxc4 {[%emt 0:00:02]} Bxc2 {[%emt 0:01:18]} 32. Bf4 {[%emt 0:00:06]} Rd4 {[%emt 0:02:32]} 33. Re8+ {[%emt 0:00:09]} Kh7 {[%emt 0:00:02]} 34. Rh8+ {[%emt 0:00:34]} Kxh8 {[%emt 0:00:21]} 35. Be5+ {[%emt 0:00:01]} Kg8 {[%emt 0:00:02]} 36. Bxd4 {[%emt 0:00:19]} Ne2+ {[%emt 0:00:01]} 37. Bxe2 {[%emt 0:00:01]} Bxd4 {[%emt 0:00:01]} 38. Bf3 {[%emt 0:00:34]} Kg7 {[%emt 0:01:13]} 39. g3 {[%emt 0:00:19]} Kf6 {[%emt 0:00:17]} 40. Kg2 {[%emt 0:00:10]} Ke5 {[%emt 0:00:32]} 41. Be2 {[%emt 0:00:40]} f6 {[%emt 0:00:53]} 42. Ba6 {[%emt 0:00:25]} Be4+ {[%emt 0:00:44]} 43. Kf1 {[%emt 0:00:07]} Bb6 {[%emt 0:00:23]} 44. Ke2 {[%emt 0:01:06]} Kd4 {[%emt 0:00:07]} 45. h4 {[%emt 0:00:29]} Bc7 {[%emt 0:00:28]} 46. Bb5 {[%emt 0:00:41]} Bg6 {[%emt 0:01:21]} 47. Kf3 {[%emt 0:00:21]} Ke5 {[%emt 0:00:13]} 48. Bd7 {[%emt 0:00:40]} Bh5+ {[%emt 0:00:39]} 49. Bg4 {[%emt 0:00:08]} Bf7 {[%emt 0:02:21]} 50. Bc8 {[%emt 0:00:18]} Bb6 {[%emt 0:00:17]} 51. g4 {[%emt 0:00:43]} Ba5 {[%emt 0:00:36]} 52. Ke3 {[%emt 0:00:21]} Bb6+ {[%emt 0:00:00]} 53. Kf3 {[%emt 0:00:01]} Be6 {[%emt 0:01:00]} 54. Ba6 {[%emt 0:00:48]} Ba5 {[%emt 0:00:01]} 55. Kg3 {[%emt 0:01:20]} Bd2 {[%emt 0:00:02]} 56. Bb7 {[%emt 0:00:27]} Bf4+ {[%emt 0:00:14]} 57. Kf3 {[%emt 0:00:16]} Bc1 {[%emt 0:00:01]} 58. Kg3 {[%emt 0:00:08]} Bd2 {[%emt 0:00:10]} 59. Bc6 {[%emt 0:00:11]} Bd5 {[%emt 0:01:03]} 60. Bxd5 {[%emt 0:02:01]} Kxd5 {[%emt 0:00:01]} 61. f4 {[%emt 0:00:01]} Ke4 {[%emt 0:00:48]} 62. f5 {[%emt 0:00:39]} Be1+ {[%emt 0:00:20]} 63. Kh3 {[%emt 0:00:02]} Kf4 {[%emt 0:00:18]} 64. g5 {[%emt 0:00:08]} hxg5 {[%emt 0:00:02]} 65. h5 {[%emt 0:00:09]} g4+ {[%emt 0:00:12]} 66. Kg2 {[%emt 0:00:05]} Kxf5 {[%emt 0:00:06]} 0-1

[Event "II Cerrado Promocion FNA 2022"]
[Site "Pamplona"]
[Date "2022.01.06"]
[Round "6.5"]
[White "Minzer, Claudio Javier"]
[Black "Luque Saiz, Andres"]
[Result "0-1"]
[ECO "D94"]
[WhiteElo "2442"]
[BlackElo "2288"]
[Annotator "ChessBase"]
[PlyCount "86"]
[EventDate "2022.01.02"]
[EventType "tourn"]
[EventCountry "ESP"]
[SourceTitle "playchess.com"]
[Source "ChessBase"]
[SourceQuality "1"]
[TimeControl "5400+30"]

1. c4 {[%emt 0:00:04]} c6 {[%emt 0:00:31]} 2. e4 {[%emt 0:00:52]} d5 {[%emt 0:00:19]} 3. exd5 {[%emt 0:00:07]} cxd5 {[%emt 0:00:06]} 4. cxd5 {[%emt 0:00:42]} Nf6 {[%emt 0:00:24]} 5. Nc3 {[%emt 0:00:25]} Nxd5 {[%emt 0:03:18]} 6. Bc4 {[%emt 0:00:31]} Nb6 {[%emt 0:08:07]} 7. Bb3 {[%emt 0:00:23]} Nc6 {[%emt 0:01:04]} 8. Nf3 {[%emt 0:01:33]} g6 {[%emt 0:07:07]} 9. d4 {[%emt 0:02:37]} Bg7 {[%emt 0:01:40]} 10. O-O {[%emt 0:02:25]} O-O {[%emt 0:04:57]} 11. a4 {[%emt 0:02:22]} Bg4 {[%emt 0:04:25]} 12. Be3 {[%emt 0:22:50]} Na5 {[%emt 0:15:25]} 13. Ba2 {[%emt 0:02:30]} Nac4 {[%emt 0:01:43]} 14. Qe2 {[%emt 0:08:13]} Rc8 {[%emt 0:06:05]} 15. Rfc1 {[%emt 0:01:47]} Nxe3 {[%emt 0:09:12]} 16. fxe3 {[%emt 0:00:41]} e5 {[%emt 0:01:19]} 17. Rd1 {[%emt 0:02:35]} exd4 {[%emt 0:12:49]} 18. exd4 {[%emt 0:02:13]} Re8 {[%emt 0:03:59]} 19. Qf1 {[%emt 0:02:14]} Qf6 {[%emt 0:06:05]} 20. Ne5 {[%emt 0:03:19]} Be6 {[%emt 0:01:16]} 21. Qxf6 {[%emt 0:12:04]} Bxf6 {[%emt 0:00:05]} 22. Ne4 {[%emt 0:00:04]} Bxe5 {[%emt 0:04:37]} 23. dxe5 {[%emt 0:00:06]} Re7 {[%emt 0:00:26]} 24. a5 {[%emt 0:01:08]} Nc4 {[%emt 0:01:36]} 25. Rac1 {[%emt 0:07:30]} Rc6 {[%emt 0:02:51]} 26. Bxc4 {[%emt 0:07:55]} Rxc4 {[%emt 0:01:05]} 27. Rxc4 {[%emt 0:02:22]} Bxc4 {[%emt 0:00:04]} 28. Rd4 {[%emt 0:00:04]} Bb5 {[%emt 0:01:10]} 29. Nf6+ {[%emt 0:00:39]} Kg7 {[%emt 0:00:12]} 30. Rd8 {[%emt 0:00:02]} Rxe5 {[%emt 0:01:09]} 31. Ng4 {[%emt 0:00:59]} Re2 {[%emt 0:00:19]} 32. h3 {[%emt 0:15:14]} Bc6 {[%emt 0:01:41]} 33. Nf2 {[%emt 0:00:00]} Rxb2 {[%emt 0:00:07]} 34. g4 {[%emt 0:00:00]} Ra2 {[%emt 0:00:36]} 35. h4 {[%emt 0:00:00]} Rxa5 {[%emt 0:00:27]} 36. g5 {[%emt 0:00:00]} h6 {[%emt 0:00:43]} 37. gxh6+ {[%emt 0:02:30]} Kxh6 {[%emt 0:00:05]} 38. Kh2 {[%emt 0:00:30]} Kg7 39. Rc8 {[%emt 0:00:00]} Rf5 {[%emt 0:01:54]} 40. Nh3 {[%emt 0:00:00]} a5 {[%emt 0:00:20]} 41. Ng5 {[%emt 0:00:00]} a4 {[%emt 0:00:24]} 42. Kg3 {[%emt 0:00:00]} Ra5 {[%emt 0:00:24]} 43. Rc7 {[%emt 0:00:00]} Bd5 {[%emt 0:00:11]} 0-1

[Event "II Cerrado Promocion FNA 2022"]
[Site "Pamplona"]
[Date "2022.01.07"]
[Round "7.4"]
[White "Habans Aguerrea, Javier"]
[Black "Escartin Lacasa, Jose"]
[Result "1/2-1/2"]
[ECO "D10"]
[WhiteElo "2298"]
[BlackElo "2315"]
[Annotator "ChessBase"]
[PlyCount "72"]
[EventDate "2022.01.02"]
[EventType "tourn"]
[EventCountry "ESP"]
[SourceTitle "playchess.com"]
[Source "ChessBase"]
[SourceQuality "1"]
[TimeControl "5400+30"]

1. d4 {[%emt 0:00:03]} d5 {[%emt 0:00:05]} 2. c4 {[%emt 0:00:06]} c6 {[%emt 0:00:09]} 3. cxd5 {[%emt 0:00:07]} cxd5 {[%emt 0:00:04]} 4. Bf4 {[%emt 0:00:08]} Nc6 {[%emt 0:00:32]} 5. e3 {[%emt 0:00:09]} Nf6 {[%emt 0:02:03]} 6. Nc3 {[%emt 0:00:07]} Bg4 {[%emt 0:02:15]} 7. Qb3 {[%emt 0:00:15]} Na5 {[%emt 0:00:19]} 8. Qa4+ {[%emt 0:00:09]} Bd7 {[%emt 0:00:09]} 9. Qc2 {[%emt 0:00:11]} Rc8 {[%emt 0:01:13]} 10. Bd3 {[%emt 0:00:12]} e6 {[%emt 0:00:19]} 11. Nf3 {[%emt 0:00:11]} Bb4 {[%emt 0:00:41]} 12. O-O {[%emt 0:01:39]} O-O {[%emt 0:01:59]} 13. Rfc1 {[%emt 0:02:07]} h6 {[%emt 0:03:11]} 14. h3 {[%emt 0:02:48]} Nc4 {[%emt 0:06:29]} 15. a3 {[%emt 0:20:30]} Bxc3 {[%emt 0:01:03]} 16. bxc3 {[%emt 1:09:48]} Qa5 {[%emt 1:17:59]} 17. a4 {[%emt 0:00:00]} Rc6 {[%emt 0:00:00]} 18. Ne5 {[%emt 0:00:00]} Nxe5 {[%emt 0:00:00]} 19. Bxe5 {[%emt 0:00:00]} Rfc8 {[%emt 0:00:00]} 20. Ra3 {[%emt 0:00:00]} Ne4 {[%emt 0:00:00]} 21. Bxe4 {[%emt 0:00:00]} dxe4 {[%emt 0:00:00]} 22. Qxe4 {[%emt 0:00:00]} f6 {[%emt 0:00:00]} 23. Bg3 {[%emt 0:00:00]} b5 {[%emt 0:00:00]} 24. Rb1 {[%emt 0:00:00]} Rb6 {[%emt 0:00:00]} 25. Rab3 {[%emt 0:03:43]} Qxa4 {[%emt 0:00:00]} 26. Bf4 {[%emt 0:00:11]} Qc4 {[%emt 0:00:00]} 27. Ra3 {[%emt 0:00:30]} a6 {[%emt 0:00:00]} 28. Rba1 {[%emt 0:00:02]} Qc6 {[%emt 0:00:00]} 29. Qxc6 {[%emt 0:01:24]} Rcxc6 {[%emt 0:00:00]} 30. e4 {[%emt 0:00:15]} b4 {[%emt 0:00:00]} 31. cxb4 {[%emt 0:00:08]} Rxb4 {[%emt 0:00:00]} 32. d5 {[%emt 0:01:09]} Rc8 {[%emt 0:00:00]} 33. dxe6 {[%emt 0:00:36]} Bxe6 {[%emt 0:00:00]} 34. Rxa6 {[%emt 0:00:07]} Rxe4 {[%emt 0:00:00]} 35. Be3 {[%emt 0:00:18]} Rc7 {[%emt 0:00:00]} 36. Ra7 {[%emt 0:00:59]} Rec4 {[%emt 0:00:00]} 1/2-1/2

[Event "II Cerrado Promocion FNA 2022"]
[Site "Pamplona"]
[Date "2022.01.07"]
[Round "7.5"]
[White "Alonso Bouza, Julio Javier"]
[Black "Labiano Hernandez, Juan"]
[Result "1-0"]
[ECO "C42"]
[WhiteElo "2396"]
[BlackElo "2210"]
[Annotator "ChessBase"]
[PlyCount "99"]
[EventDate "2022.01.02"]
[EventType "tourn"]
[EventCountry "ESP"]
[SourceTitle "playchess.com"]
[Source "ChessBase"]
[SourceQuality "1"]
[TimeControl "5400+30"]

1. e4 {[%emt 0:01:39]} e5 {[%emt 0:00:04]} 2. Nf3 {[%emt 0:00:09]} Nf6 {[%emt 0:00:06]} 3. Nxe5 {[%emt 0:00:54]} Nxe4 {[%emt 0:00:07]} 4. Qe2 {[%emt 0:00:29]} Qe7 {[%emt 0:00:04]} 5. Qxe4 {[%emt 0:00:14]} d6 {[%emt 0:00:05]} 6. d4 {[%emt 0:00:18]} dxe5 {[%emt 0:00:04]} 7. dxe5 {[%emt 0:00:20]} Nc6 {[%emt 0:00:06]} 8. Nc3 {[%emt 0:00:55]} Qxe5 {[%emt 0:00:09]} 9. Qxe5+ {[%emt 0:00:10]} Nxe5 {[%emt 0:00:01]} 10. Nb5 {[%emt 0:00:16]} Bb4+ {[%emt 0:01:00]} 11. Bd2 {[%emt 0:00:24]} Bxd2+ {[%emt 0:00:09]} 12. Kxd2 {[%emt 0:00:03]} Kd8 {[%emt 0:00:09]} 13. Re1 {[%emt 0:00:28]} f6 {[%emt 0:02:33]} 14. f4 {[%emt 0:01:34]} Ng6 {[%emt 0:00:06]} 15. g3 {[%emt 0:01:49]} Bd7 {[%emt 0:03:57]} 16. Nd4 {[%emt 0:04:58]} Re8 {[%emt 0:05:22]} 17. Bd3 {[%emt 0:03:40]} Nf8 {[%emt 0:08:08]} 18. Rxe8+ {[%emt 0:10:23]} Kxe8 {[%emt 0:01:02]} 19. Re1+ {[%emt 0:00:22]} Kd8 {[%emt 0:00:10]} 20. b4 {[%emt 0:02:03]} Rc8 {[%emt 0:11:13]} 21. Nf5 {[%emt 0:04:11]} Bxf5 {[%emt 0:00:13]} 22. Bxf5 {[%emt 0:00:06]} Ra8 {[%emt 0:00:11]} 23. Kc3 {[%emt 0:01:14]} c6 {[%emt 0:03:17]} 24. Kc4 {[%emt 0:02:36]} g6 {[%emt 0:01:18]} 25. Bh3 {[%emt 0:01:42]} b6 {[%emt 0:05:33]} 26. a4 {[%emt 0:08:30]} h5 {[%emt 0:01:08]} 27. b5 {[%emt 0:18:19]} cxb5+ {[%emt 0:00:24]} 28. axb5 {[%emt 0:02:47]} f5 {[%emt 0:00:06]} 29. Bg2 {[%emt 0:02:01]} Rc8+ {[%emt 0:04:47]} 30. Bc6 {[%emt 0:00:36]} Kc7 {[%emt 0:02:59]} 31. Re7+ {[%emt 0:00:50]} Kd6 {[%emt 0:00:07]} 32. Rxa7 {[%emt 0:00:18]} Rb8 {[%emt 0:00:34]} 33. c3 {[%emt 0:02:29]} Ke6 {[%emt 0:00:33]} 34. h4 {[%emt 0:30:43]} Kf6 {[%emt 0:51:45]} 35. Bd5 {[%emt 0:00:00]} Rc8+ {[%emt 0:00:00]} 36. Kb4 {[%emt 0:00:00]} Ne6 {[%emt 0:00:00]} 37. Bxe6 {[%emt 0:00:00]} Kxe6 {[%emt 0:00:00]} 38. Rb7 {[%emt 0:00:00]} Kd5 {[%emt 0:00:00]} 39. Rxb6 {[%emt 0:00:00]} Rg8 {[%emt 0:00:00]} 40. c4+ {[%emt 0:00:00]} Ke4 {[%emt 0:00:00]} 41. Ra6 {[%emt 0:00:00]} Kf3 {[%emt 0:00:00]} 42. Ra3+ {[%emt 0:00:00]} Kg4 {[%emt 0:00:00]} 43. b6 {[%emt 0:00:00]} g5 {[%emt 0:00:00]} 44. fxg5 {[%emt 0:00:00]} f4 {[%emt 0:00:00]} 45. gxf4 {[%emt 0:00:00]} Kxh4 {[%emt 0:00:00]} 46. c5 {[%emt 0:00:00]} Kg4 {[%emt 0:00:00]} 47. b7 {[%emt 0:00:00]} h4 {[%emt 0:00:00]} 48. Ra8 {[%emt 0:00:00]} h3 {[%emt 0:00:00]} 49. Rxg8 {[%emt 0:00:00]} h2 {[%emt 0:00:00]} 50. Rh8 {[%emt 0:00:00]} 1-0